[Event "Titled Tuesday Blitz August 23 Late 2022"]
[White "Pinheiro, Iung Alicio de O."]
[Black "Sjugirov, Sanan"]
[WhiteFideId "2104350"]
[BlackFideId "4189302"]
[WhiteElo "2283"]
[BlackElo "2609"]
[Result "0-1"]
[Round "05"]
[TimeControl "180+1"]
[Date "2022.08.23"]
[WhiteClock "0:00:03"]
[BlackClock "0:00:18"]

1. e4 {[%clk 0:03:00]}  c6 {[%clk 0:02:57]} 2. Nc3 {[%clk 0:03:00]}  d5 {[%clk 0:02:58]} 3. Nf3 {[%clk 0:03:00]}  Bg4 {[%clk 0:02:58]} 4. h3 {[%clk 0:03:00]}  Bxf3 {[%clk 0:02:58]} 5. Qxf3 {[%clk 0:02:59]}  e6 {[%clk 0:02:59]} 6. d4 {[%clk 0:02:58]}  Nf6 {[%clk 0:02:54]} 7. Bd3 {[%clk 0:02:57]}  Bb4 {[%clk 0:02:48]} 8. e5 {[%clk 0:02:56]}  Nfd7 {[%clk 0:02:47]} 9. Qg3 {[%clk 0:02:55]}  g6 {[%clk 0:02:45]} 10. Bh6 {[%clk 0:02:40]}  c5 {[%clk 0:02:43]} 11. O-O {[%clk 0:02:26]}  Nc6 {[%clk 0:02:41]} 12. Nb5 {[%clk 0:02:19]}  c4 {[%clk 0:02:40]} 13. Be2 {[%clk 0:02:15]}  Qb6 {[%clk 0:02:40]} 14. Nd6+ {[%clk 0:02:03]}  Bxd6 {[%clk 0:02:35]} 15. exd6 {[%clk 0:02:03]}  Nxd4 {[%clk 0:02:35]} 16. Bd1 {[%clk 0:01:55]}  Nf5 {[%clk 0:02:33]} 17. Qf4 {[%clk 0:01:54]}  Qxd6 {[%clk 0:02:19]} 18. Re1 {[%clk 0:01:44]}  O-O-O {[%clk 0:02:13]} 19. c3 {[%clk 0:01:30]}  Rhe8 {[%clk 0:02:07]} 20. Bf3 {[%clk 0:01:24]}  Nc5 {[%clk 0:02:03]} 21. Be2 {[%clk 0:01:14]}  Nxh6 {[%clk 0:01:55]} 22. Qxh6 {[%clk 0:01:14]}  Qe7 {[%clk 0:01:40]} 23. Rad1 {[%clk 0:01:13]}  Qf6 {[%clk 0:01:38]} 24. Qe3 {[%clk 0:01:12]}  b6 {[%clk 0:01:36]} 25. b4 {[%clk 0:01:08]}  Ne4 {[%clk 0:01:33]} 26. Rc1 {[%clk 0:01:07]}  Nd6 {[%clk 0:01:27]} 27. a4 {[%clk 0:01:03]}  Kb8 {[%clk 0:01:26]} 28. a5 {[%clk 0:00:58]}  b5 {[%clk 0:01:25]} 29. a6 {[%clk 0:00:58]}  Qe7 {[%clk 0:01:20]} 30. Bf3 {[%clk 0:00:53]}  Qc7 {[%clk 0:01:19]} 31. Qh6 {[%clk 0:00:50]}  f6 {[%clk 0:01:17]} 32. Ra1 {[%clk 0:00:48]}  Nf5 {[%clk 0:01:14]} 33. Qd2 {[%clk 0:00:48]}  e5 {[%clk 0:01:11]} 34. Ra5 {[%clk 0:00:46]}  Qb6 {[%clk 0:01:11]} 35. Bg4 {[%clk 0:00:45]}  Ne7 {[%clk 0:01:06]} 36. Kh1 {[%clk 0:00:42]}  Nc6 {[%clk 0:01:05]} 37. Raa1 {[%clk 0:00:41]}  f5 {[%clk 0:01:04]} 38. Bf3 {[%clk 0:00:40]}  e4 {[%clk 0:01:03]} 39. Be2 {[%clk 0:00:40]}  Qxf2 {[%clk 0:01:01]} 40. Rf1 {[%clk 0:00:40]}  Qb6 {[%clk 0:00:58]} 41. Qf4+ {[%clk 0:00:36]}  Qc7 {[%clk 0:00:58]} 42. Qe3 {[%clk 0:00:36]}  d4 {[%clk 0:00:57]} 43. cxd4 {[%clk 0:00:36]}  Nxd4 {[%clk 0:00:58]} 44. Bd1 {[%clk 0:00:36]}  Ne6 {[%clk 0:00:48]} 45. Ra5 {[%clk 0:00:33]}  Rd5 {[%clk 0:00:44]} 46. Be2 {[%clk 0:00:29]}  Red8 {[%clk 0:00:43]} 47. Rc1 {[%clk 0:00:25]}  Qf4 {[%clk 0:00:41]} 48. Qg1 {[%clk 0:00:21]}  Nd4 {[%clk 0:00:39]} 49. Bxc4 {[%clk 0:00:08]}  bxc4 {[%clk 0:00:19]} 50. Rxd5 {[%clk 0:00:08]}  Rxd5 {[%clk 0:00:20]} 51. Rxc4 {[%clk 0:00:08]}  Nf3 {[%clk 0:00:19]} 52. Qf1 {[%clk 0:00:03]}  Qd2 {[%clk 0:00:17]} 53. gxf3 {[%clk 0:00:02]}  Qd1 {[%clk 0:00:17]} 54. Qxd1 {[%clk 0:00:02]}  Rxd1+ {[%clk 0:00:18]} 55. Kg2 {[%clk 0:00:03]}  e3 {[%clk 0:00:19]} 56. Rc6 {[%clk 0:00:02]}  e2 {[%clk 0:00:18]} 57. Re6 {[%clk 0:00:03]}  e1=Q {[%clk 0:00:18]} 0-1


[Site "https://www.chess.com"]

[Event "Titled Tuesday Blitz August 23 Late 2022"]
[White "Salem, A.R. Saleh"]
[Black "Pulpan, Jakub"]
[WhiteFideId "9301348"]
[BlackFideId "302759"]
[WhiteElo "2674"]
[BlackElo "2451"]
[Result "1/2-1/2"]
[Round "05"]
[TimeControl "180+1"]
[Date "2022.08.23"]
[WhiteClock "0:00:32"]
[BlackClock "0:00:46"]

1. d4 {[%clk 0:03:00]}  Nf6 {[%clk 0:02:59]} 2. c4 {[%clk 0:03:01]}  e6 {[%clk 0:02:58]} 3. Nc3 {[%clk 0:03:02]}  Bb4 {[%clk 0:02:55]} 4. a3 {[%clk 0:03:02]}  Bxc3+ {[%clk 0:02:49]} 5. bxc3 {[%clk 0:03:03]}  Qe7 {[%clk 0:02:30]} 6. f3 {[%clk 0:02:57]}  e5 {[%clk 0:02:30]} 7. e4 {[%clk 0:02:57]}  d6 {[%clk 0:02:24]} 8. Bd3 {[%clk 0:02:50]}  c5 {[%clk 0:01:57]} 9. Ne2 {[%clk 0:02:50]}  Nc6 {[%clk 0:01:55]} 10. O-O {[%clk 0:02:51]}  cxd4 {[%clk 0:01:50]} 11. cxd4 {[%clk 0:02:51]}  exd4 {[%clk 0:01:51]} 12. Bb2 {[%clk 0:02:50]}  O-O {[%clk 0:01:52]} 13. Nxd4 {[%clk 0:02:50]}  Nxd4 {[%clk 0:01:52]} 14. Bxd4 {[%clk 0:02:51]}  Be6 {[%clk 0:01:50]} 15. Qb3 {[%clk 0:01:52]}  b6 {[%clk 0:01:45]} 16. a4 {[%clk 0:01:50]}  Nd7 {[%clk 0:01:45]} 17. Qb2 {[%clk 0:01:47]}  Ne5 {[%clk 0:01:37]} 18. Be2 {[%clk 0:01:41]}  Bxc4 {[%clk 0:01:28]} 19. Bxe5 {[%clk 0:01:29]}  dxe5 {[%clk 0:01:28]} 20. Bxc4 {[%clk 0:01:29]}  Qc5+ {[%clk 0:01:28]} 21. Kh1 {[%clk 0:01:29]}  Qxc4 {[%clk 0:01:28]} 22. Qxe5 {[%clk 0:01:29]}  Rac8 {[%clk 0:01:23]} 23. h3 {[%clk 0:01:28]}  Rfe8 {[%clk 0:01:21]} 24. Qg3 {[%clk 0:01:14]}  g6 {[%clk 0:01:09]} 25. Rfd1 {[%clk 0:01:13]}  Red8 {[%clk 0:01:06]} 26. Qe1 {[%clk 0:00:52]}  Kg7 {[%clk 0:00:50]} 27. Rdc1 {[%clk 0:00:42]}  Qd4 {[%clk 0:00:47]} 28. Rd1 {[%clk 0:00:42]}  Qc4 {[%clk 0:00:46]} 29. Rdc1 {[%clk 0:00:31]}  Qd4 {[%clk 0:00:46]} 30. Rd1 {[%clk 0:00:32]}  Qc4 {[%clk 0:00:46]} 1/2-1/2


[Site "https://www.chess.com"]

[Event "Titled Tuesday Blitz August 23 Late 2022"]
[White "Shimanov, Aleksandr"]
[Black "Jaracz, Pawel"]
[WhiteFideId "4198603"]
[BlackFideId "1102222"]
[WhiteElo "2605"]
[BlackElo "2459"]
[Result "0-1"]
[Round "05"]
[TimeControl "180+1"]
[Date "2022.08.23"]
[WhiteClock "0:00:00"]
[BlackClock "0:00:03"]

1. e4 {[%clk 0:03:00]}  c5 {[%clk 0:02:59]} 2. Nf3 {[%clk 0:03:00]}  e6 {[%clk 0:02:59]} 3. g3 {[%clk 0:02:50]}  Nc6 {[%clk 0:02:53]} 4. Bg2 {[%clk 0:01:47]}  Nf6 {[%clk 0:02:49]} 5. d3 {[%clk 0:01:47]}  d5 {[%clk 0:02:46]} 6. Qe2 {[%clk 0:01:47]}  Be7 {[%clk 0:02:42]} 7. e5 {[%clk 0:01:46]}  Nd7 {[%clk 0:02:42]} 8. c4 {[%clk 0:01:46]}  Nb6 {[%clk 0:02:40]} 9. O-O {[%clk 0:01:46]}  O-O {[%clk 0:02:36]} 10. Rd1 {[%clk 0:01:43]}  Bd7 {[%clk 0:02:26]} 11. Nc3 {[%clk 0:01:42]}  a6 {[%clk 0:02:11]} 12. h4 {[%clk 0:01:42]}  Nd4 {[%clk 0:02:06]} 13. Nxd4 {[%clk 0:01:19]}  cxd4 {[%clk 0:02:06]} 14. cxd5 {[%clk 0:01:19]}  dxc3 {[%clk 0:02:04]} 15. d6 {[%clk 0:01:20]}  cxb2 {[%clk 0:01:49]} 16. Qxb2 {[%clk 0:01:21]}  Bxd6 {[%clk 0:01:39]} 17. exd6 {[%clk 0:01:22]}  Bc6 {[%clk 0:01:39]} 18. Bxc6 {[%clk 0:00:57]}  bxc6 {[%clk 0:01:40]} 19. Be3 {[%clk 0:00:57]}  Nd5 {[%clk 0:01:39]} 20. Bc5 {[%clk 0:00:58]}  Qa5 {[%clk 0:01:11]} 21. Rdc1 {[%clk 0:00:54]}  Rfb8 {[%clk 0:01:03]} 22. Qc2 {[%clk 0:00:53]}  Nf6 {[%clk 0:00:55]} 23. d4 {[%clk 0:00:53]}  Nd7 {[%clk 0:00:55]} 24. Qe4 {[%clk 0:00:53]}  Qa4 {[%clk 0:00:53]} 25. h5 {[%clk 0:00:46]}  Rd8 {[%clk 0:00:46]} 26. Qf3 {[%clk 0:00:44]}  h6 {[%clk 0:00:45]} 27. Rab1 {[%clk 0:00:42]}  Qxa2 {[%clk 0:00:40]} 28. Rb7 {[%clk 0:00:42]}  Qd5 {[%clk 0:00:39]} 29. Kg2 {[%clk 0:00:33]}  a5 {[%clk 0:00:39]} 30. Rc7 {[%clk 0:00:30]}  Rac8 {[%clk 0:00:36]} 31. Qxd5 {[%clk 0:00:23]}  cxd5 {[%clk 0:00:36]} 32. Rb1 {[%clk 0:00:14]}  Kh7 {[%clk 0:00:21]} 33. Rbb7 {[%clk 0:00:14]}  Rxc7 {[%clk 0:00:20]} 34. dxc7 {[%clk 0:00:14]}  Rc8 {[%clk 0:00:20]} 35. Bd6 {[%clk 0:00:11]}  a4 {[%clk 0:00:14]} 36. Ra7 {[%clk 0:00:11]}  Nb6 {[%clk 0:00:11]} 37. g4 {[%clk 0:00:10]}  Nc4 {[%clk 0:00:10]} 38. Bg3 {[%clk 0:00:10]}  f6 {[%clk 0:00:11]} 39. Rxa4 {[%clk 0:00:05]}  e5 {[%clk 0:00:11]} 40. dxe5 {[%clk 0:00:05]}  Nxe5 {[%clk 0:00:07]} 41. Ra7 {[%clk 0:00:01]}  Nxg4 {[%clk 0:00:04]} 42. Kf3 {[%clk 0:00:02]}  Ne5+ {[%clk 0:00:03]} 43. Ke3 {[%clk 0:00:02]}  Kg8 {[%clk 0:00:03]} 44. Rb7 {[%clk 0:00:02]}  Kf7 {[%clk 0:00:03]} 45. Kd4 {[%clk 0:00:00]}  Ke6 {[%clk 0:00:03]} 0-1


[Site "https://www.chess.com"]

[Event "Titled Tuesday Blitz August 23 Late 2022"]
[White "Shirov, Alexei"]
[Black "Petrovic, Aleksa"]
[WhiteFideId "2209390"]
[BlackFideId "967629"]
[WhiteElo "2678"]
[BlackElo "2262"]
[Result "1-0"]
[Round "05"]
[TimeControl "180+1"]
[Date "2022.08.23"]
[WhiteClock "0:01:20"]
[BlackClock "0:00:31"]

1. e4 {[%clk 0:03:00]}  e5 {[%clk 0:03:00]} 2. Nf3 {[%clk 0:02:59]}  Nc6 {[%clk 0:02:49]} 3. Bb5 {[%clk 0:02:58]}  a6 {[%clk 0:02:49]} 4. Ba4 {[%clk 0:02:57]}  Nf6 {[%clk 0:02:49]} 5. O-O {[%clk 0:02:57]}  b5 {[%clk 0:02:49]} 6. Bb3 {[%clk 0:02:56]}  Bc5 {[%clk 0:02:50]} 7. a4 {[%clk 0:02:52]}  Rb8 {[%clk 0:02:50]} 8. c3 {[%clk 0:02:51]}  d6 {[%clk 0:02:50]} 9. d4 {[%clk 0:02:51]}  Bb6 {[%clk 0:02:50]} 10. a5 {[%clk 0:02:50]}  Ba7 {[%clk 0:02:50]} 11. h3 {[%clk 0:02:48]}  O-O {[%clk 0:02:47]} 12. Be3 {[%clk 0:02:45]}  Ra8 {[%clk 0:02:37]} 13. Nbd2 {[%clk 0:02:40]}  Re8 {[%clk 0:02:33]} 14. Ng5 {[%clk 0:02:32]}  Re7 {[%clk 0:02:22]} 15. Ndf3 {[%clk 0:02:20]}  h6 {[%clk 0:02:12]} 16. Nxf7 {[%clk 0:01:59]}  Rxf7 {[%clk 0:02:11]} 17. dxe5 {[%clk 0:01:58]}  dxe5 {[%clk 0:01:57]} 18. Bxf7+ {[%clk 0:01:55]}  Kxf7 {[%clk 0:01:37]} 19. Nxe5+ {[%clk 0:01:55]}  Ke8 {[%clk 0:01:31]} 20. Nxc6 {[%clk 0:01:53]}  Qxd1 {[%clk 0:01:32]} 21. Raxd1 {[%clk 0:01:50]}  Bxe3 {[%clk 0:01:31]} 22. fxe3 {[%clk 0:01:50]}  Bb7 {[%clk 0:01:27]} 23. e5 {[%clk 0:01:46]}  Ne4 {[%clk 0:01:11]} 24. Nd4 {[%clk 0:01:44]}  Nc5 {[%clk 0:01:08]} 25. Nf5 {[%clk 0:01:32]}  Ne6 {[%clk 0:01:07]} 26. Nd4 {[%clk 0:01:32]}  Nc5 {[%clk 0:01:06]} 27. e6 {[%clk 0:01:29]}  Rd8 {[%clk 0:00:53]} 28. b4 {[%clk 0:01:23]}  Ne4 {[%clk 0:00:45]} 29. Rf7 {[%clk 0:01:22]}  Ng5 {[%clk 0:00:31]} 30. Rxc7 {[%clk 0:01:20]} 1-0


[Site "https://www.chess.com"]

[Event "Titled Tuesday Blitz August 23 Late 2022"]
[White "Slugin, Sergey"]
[Black "Tari, Aryan"]
[WhiteFideId "4122569"]
[BlackFideId "1510045"]
[WhiteElo "2330"]
[BlackElo "2612"]
[Result "0-1"]
[Round "05"]
[TimeControl "180+1"]
[Date "2022.08.23"]
[WhiteClock "0:00:33"]
[BlackClock "0:00:19"]

1. c4 {[%clk 0:03:00]}  g6 {[%clk 0:02:58]} 2. Nf3 {[%clk 0:02:58]}  Bg7 {[%clk 0:02:56]} 3. Nc3 {[%clk 0:02:52]}  c5 {[%clk 0:02:56]} 4. e3 {[%clk 0:02:50]}  Nf6 {[%clk 0:02:54]} 5. d4 {[%clk 0:02:50]}  cxd4 {[%clk 0:02:54]} 6. exd4 {[%clk 0:02:47]}  d5 {[%clk 0:02:55]} 7. cxd5 {[%clk 0:02:35]}  Nxd5 {[%clk 0:02:55]} 8. Bc4 {[%clk 0:02:33]}  Nxc3 {[%clk 0:02:55]} 9. bxc3 {[%clk 0:02:34]}  Qc7 {[%clk 0:02:54]} 10. Bb3 {[%clk 0:02:21]}  Qxc3+ {[%clk 0:02:30]} 11. Bd2 {[%clk 0:02:22]}  Qd3 {[%clk 0:02:30]} 12. Rc1 {[%clk 0:02:19]}  O-O {[%clk 0:02:23]} 13. Bc4 {[%clk 0:02:13]}  Qe4+ {[%clk 0:02:23]} 14. Be3 {[%clk 0:02:13]}  Nc6 {[%clk 0:02:19]} 15. O-O {[%clk 0:02:12]}  Bg4 {[%clk 0:02:16]} 16. Ng5 {[%clk 0:02:02]}  Bxd1 {[%clk 0:01:40]} 17. Nxe4 {[%clk 0:02:02]}  Bg4 {[%clk 0:01:40]} 18. d5 {[%clk 0:01:45]}  Ne5 {[%clk 0:01:26]} 19. Bb3 {[%clk 0:01:45]}  Rfc8 {[%clk 0:00:55]} 20. d6 {[%clk 0:01:41]}  Bf5 {[%clk 0:00:46]} 21. Ng3 {[%clk 0:01:33]}  Bd3 {[%clk 0:00:37]} 22. Rxc8+ {[%clk 0:01:29]}  Rxc8 {[%clk 0:00:36]} 23. Rd1 {[%clk 0:01:30]}  exd6 {[%clk 0:00:35]} 24. f4 {[%clk 0:01:31]}  Ng4 {[%clk 0:00:35]} 25. Rxd3 {[%clk 0:01:30]}  Nxe3 {[%clk 0:00:35]} 26. Rxe3 {[%clk 0:01:31]}  Bd4 {[%clk 0:00:35]} 27. Kf2 {[%clk 0:01:30]}  Bxe3+ {[%clk 0:00:28]} 28. Kxe3 {[%clk 0:01:31]}  Kf8 {[%clk 0:00:28]} 29. Ne4 {[%clk 0:01:28]}  Ke7 {[%clk 0:00:28]} 30. Kd2 {[%clk 0:01:19]}  b5 {[%clk 0:00:24]} 31. Bxf7 {[%clk 0:01:17]}  d5 {[%clk 0:00:20]} 32. Ng5 {[%clk 0:00:49]}  h6 {[%clk 0:00:20]} 33. Bxg6 {[%clk 0:00:49]}  hxg5 {[%clk 0:00:20]} 34. fxg5 {[%clk 0:00:50]}  Rg8 {[%clk 0:00:20]} 35. Bd3 {[%clk 0:00:51]}  Rxg5 {[%clk 0:00:20]} 36. g3 {[%clk 0:00:51]}  d4 {[%clk 0:00:21]} 37. Ke2 {[%clk 0:00:49]}  Re5+ {[%clk 0:00:20]} 38. Kf2 {[%clk 0:00:47]}  b4 {[%clk 0:00:21]} 39. h4 {[%clk 0:00:47]}  Re3 {[%clk 0:00:21]} 40. Bc4 {[%clk 0:00:45]}  Rc3 {[%clk 0:00:22]} 41. Bb3 {[%clk 0:00:45]}  Re3 {[%clk 0:00:18]} 42. g4 {[%clk 0:00:43]}  Kf6 {[%clk 0:00:18]} 43. Bc2 {[%clk 0:00:41]}  Rh3 {[%clk 0:00:17]} 44. g5+ {[%clk 0:00:42]}  Ke5 {[%clk 0:00:17]} 45. g6 {[%clk 0:00:40]}  Rxh4 {[%clk 0:00:17]} 46. Kg3 {[%clk 0:00:41]}  Rh1 {[%clk 0:00:17]} 47. Kg2 {[%clk 0:00:38]}  Rc1 {[%clk 0:00:16]} 48. Bd3 {[%clk 0:00:32]}  Kf6 {[%clk 0:00:16]} 49. Kf3 {[%clk 0:00:33]}  Ra1 {[%clk 0:00:16]} 50. Ke4 {[%clk 0:00:30]}  Rxa2 {[%clk 0:00:17]} 51. Kxd4 {[%clk 0:00:31]}  a5 {[%clk 0:00:17]} 52. Kc4 {[%clk 0:00:32]}  Rb2 {[%clk 0:00:17]} 53. Kb5 {[%clk 0:00:32]}  b3 {[%clk 0:00:18]} 54. Kxa5 {[%clk 0:00:32]}  Rd2 {[%clk 0:00:18]} 55. Be4 {[%clk 0:00:32]}  b2 {[%clk 0:00:19]} 56. Kb4 {[%clk 0:00:33]}  Rd4+ {[%clk 0:00:19]} 0-1


[Site "https://www.chess.com"]

[Event "Titled Tuesday Blitz August 23 Late 2022"]
[White "Vovk, Orest"]
[Black "Riff, Vincent"]
[WhiteFideId "14113490"]
[BlackFideId "617776"]
[WhiteElo "2203"]
[BlackElo "2369"]
[Result "1-0"]
[Round "05"]
[TimeControl "180+1"]
[Date "2022.08.23"]
[WhiteClock "0:01:04"]
[BlackClock "0:01:45"]

1. h4 {[%clk 0:02:16]}  e5 {[%clk 0:02:54]} 2. h5 {[%clk 0:02:15]}  h6 {[%clk 0:02:52]} 3. d4 {[%clk 0:02:09]}  Nc6 {[%clk 0:02:51]} 4. dxe5 {[%clk 0:02:07]}  Nxe5 {[%clk 0:02:49]} 5. Nc3 {[%clk 0:02:05]}  Nf6 {[%clk 0:02:48]} 6. Nf3 {[%clk 0:02:04]}  Nxf3+ {[%clk 0:02:45]} 7. gxf3 {[%clk 0:02:01]}  d5 {[%clk 0:02:45]} 8. e4 {[%clk 0:02:01]}  d4 {[%clk 0:02:41]} 9. Ne2 {[%clk 0:02:00]}  Bc5 {[%clk 0:02:38]} 10. Nf4 {[%clk 0:01:56]}  c6 {[%clk 0:02:31]} 11. Rg1 {[%clk 0:01:54]}  Rg8 {[%clk 0:02:27]} 12. Bc4 {[%clk 0:01:54]}  Qb6 {[%clk 0:02:21]} 13. Qe2 {[%clk 0:01:41]}  Bd7 {[%clk 0:02:14]} 14. e5 {[%clk 0:01:27]}  Nd5 {[%clk 0:02:12]} 15. e6 {[%clk 0:01:21]}  Nxf4 {[%clk 0:01:44]} 16. exf7+ {[%clk 0:01:09]}  Kd8 {[%clk 0:01:44]} 17. fxg8=Q+ {[%clk 0:01:08]}  Kc7 {[%clk 0:01:45]} 18. Bxf4+ {[%clk 0:01:08]}  Bd6 {[%clk 0:01:45]} 19. Bxd6+ {[%clk 0:01:04]} 1-0


[Site "https://www.chess.com"]

[Event "Titled Tuesday Blitz August 23 Late 2022"]
[White "Zhigalko, Sergei"]
[Black "Nazaretyan, Tigran"]
[WhiteFideId "13502956"]
[BlackFideId "24162345"]
[WhiteElo "2662"]
[BlackElo "2183"]
[Result "0-1"]
[Round "05"]
[TimeControl "180+1"]
[Date "2022.08.23"]
[WhiteClock "0:00:03"]
[BlackClock "0:00:15"]

1. e4 {[%clk 0:03:00]}  c5 {[%clk 0:02:59]} 2. Nf3 {[%clk 0:03:00]}  Nc6 {[%clk 0:02:58]} 3. c3 {[%clk 0:03:00]}  Nf6 {[%clk 0:02:58]} 4. e5 {[%clk 0:03:01]}  Nd5 {[%clk 0:02:58]} 5. Bc4 {[%clk 0:03:01]}  Nb6 {[%clk 0:02:55]} 6. Bb3 {[%clk 0:03:02]}  d5 {[%clk 0:02:52]} 7. exd6 {[%clk 0:03:03]}  Qxd6 {[%clk 0:02:51]} 8. O-O {[%clk 0:03:03]}  Be6 {[%clk 0:02:51]} 9. Bxe6 {[%clk 0:03:03]}  Qxe6 {[%clk 0:02:51]} 10. a4 {[%clk 0:03:04]}  Nd5 {[%clk 0:02:38]} 11. d4 {[%clk 0:03:00]}  cxd4 {[%clk 0:02:37]} 12. Nxd4 {[%clk 0:03:01]}  Nxd4 {[%clk 0:02:32]} 13. Qxd4 {[%clk 0:03:01]}  Qc6 {[%clk 0:02:28]} 14. Na3 {[%clk 0:02:22]}  e6 {[%clk 0:02:25]} 15. Rd1 {[%clk 0:02:13]}  Qb6 {[%clk 0:01:59]} 16. Qe4 {[%clk 0:02:00]}  Bxa3 {[%clk 0:01:55]} 17. Rxd5 {[%clk 0:01:35]}  Bxb2 {[%clk 0:01:32]} 18. Rb5 {[%clk 0:01:28]}  Bxa1 {[%clk 0:01:28]} 19. Rxb6 {[%clk 0:01:23]}  axb6 {[%clk 0:01:28]} 20. Ba3 {[%clk 0:00:19]}  O-O-O {[%clk 0:01:19]} 21. g3 {[%clk 0:00:19]}  Rd1+ {[%clk 0:01:05]} 22. Kg2 {[%clk 0:00:19]}  Rhd8 {[%clk 0:01:06]} 23. Qxh7 {[%clk 0:00:09]}  Bxc3 {[%clk 0:00:57]} 24. Qc2 {[%clk 0:00:06]}  R8d3 {[%clk 0:00:57]} 25. Bb4 {[%clk 0:00:03]}  R1d2 {[%clk 0:00:56]} 26. Qc1 {[%clk 0:00:03]}  Rd1 {[%clk 0:00:54]} 27. Qf4 {[%clk 0:00:02]}  Rd4 {[%clk 0:00:50]} 28. Qxf7 {[%clk 0:00:02]}  Bxb4 {[%clk 0:00:49]} 29. Qxg7 {[%clk 0:00:02]}  Bc5 {[%clk 0:00:48]} 30. Qg8+ {[%clk 0:00:01]}  Kc7 {[%clk 0:00:47]} 31. Qf7+ {[%clk 0:00:01]}  Kb8 {[%clk 0:00:46]} 32. h4 {[%clk 0:00:01]}  R4d2 {[%clk 0:00:45]} 33. Kh3 {[%clk 0:00:01]}  Rxf2 {[%clk 0:00:43]} 34. Qxe6 {[%clk 0:00:02]}  Ka8 {[%clk 0:00:43]} 35. a5 {[%clk 0:00:02]}  Rdd2 {[%clk 0:00:42]} 36. axb6 {[%clk 0:00:02]}  Rh2+ {[%clk 0:00:41]} 37. Kg4 {[%clk 0:00:02]}  Rd4+ {[%clk 0:00:40]} 38. Kh5 {[%clk 0:00:03]}  Rhd2 {[%clk 0:00:24]} 39. Qg8+ {[%clk 0:00:02]}  Rd8 {[%clk 0:00:24]} 40. Qb3 {[%clk 0:00:03]}  Kb8 {[%clk 0:00:17]} 41. Kg4 {[%clk 0:00:03]}  R2d4+ {[%clk 0:00:17]} 42. Kh3 {[%clk 0:00:03]}  Rb4 {[%clk 0:00:17]} 43. Qc2 {[%clk 0:00:02]}  Bxb6 {[%clk 0:00:17]} 44. Qc3 {[%clk 0:00:02]}  Rbd4 {[%clk 0:00:16]} 45. Qa3 {[%clk 0:00:02]}  Bc7 {[%clk 0:00:16]} 46. Qb4 {[%clk 0:00:02]}  Rd3 {[%clk 0:00:17]} 47. h5 {[%clk 0:00:02]}  Rxg3+ {[%clk 0:00:16]} 48. Kh4 {[%clk 0:00:03]}  Rgd3 {[%clk 0:00:16]} 49. Qe7 {[%clk 0:00:03]}  R8d4+ {[%clk 0:00:15]} 50. Kg5 {[%clk 0:00:03]}  Bd8 {[%clk 0:00:15]} 0-1


[Site "https://www.chess.com"]

[Event "Titled Tuesday Blitz August 23 Late 2022"]
[White "Al-Tarboush, Ward"]
[Black "Yanchenko, Roman"]
[WhiteFideId "7601450"]
[BlackFideId "4137329"]
[WhiteElo "2234"]
[BlackElo "2514"]
[Result "0-1"]
[Round "06"]
[TimeControl "180+1"]
[Date "2022.08.23"]
[WhiteClock "0:01:23"]
[BlackClock "0:00:13"]

1. d4 {[%clk 0:03:00]}  d5 {[%clk 0:02:59]} 2. Nc3 {[%clk 0:03:00]}  Bf5 {[%clk 0:02:59]} 3. Bg5 {[%clk 0:02:55]}  c6 {[%clk 0:02:58]} 4. e3 {[%clk 0:02:55]}  Qb6 {[%clk 0:02:58]} 5. Rb1 {[%clk 0:02:54]}  e6 {[%clk 0:02:58]} 6. Bd3 {[%clk 0:02:53]}  Bg6 {[%clk 0:02:58]} 7. Nf3 {[%clk 0:02:52]}  Nd7 {[%clk 0:02:58]} 8. O-O {[%clk 0:02:51]}  Ngf6 {[%clk 0:02:58]} 9. Qe2 {[%clk 0:02:48]}  Bd6 {[%clk 0:02:56]} 10. e4 {[%clk 0:02:47]}  dxe4 {[%clk 0:02:57]} 11. Nxe4 {[%clk 0:02:48]}  Nxe4 {[%clk 0:02:51]} 12. Bxe4 {[%clk 0:02:49]}  Qa5 {[%clk 0:02:36]} 13. a3 {[%clk 0:02:40]}  a6 {[%clk 0:02:25]} 14. c4 {[%clk 0:02:39]}  O-O {[%clk 0:01:40]} 15. b4 {[%clk 0:02:38]}  Qc7 {[%clk 0:01:39]} 16. Rfe1 {[%clk 0:02:31]}  Rfe8 {[%clk 0:01:30]} 17. Bxg6 {[%clk 0:02:29]}  hxg6 {[%clk 0:01:30]} 18. g3 {[%clk 0:02:29]}  Nf6 {[%clk 0:01:24]} 19. Ne5 {[%clk 0:02:19]}  a5 {[%clk 0:01:21]} 20. c5 {[%clk 0:02:03]}  Bxe5 {[%clk 0:01:21]} 21. dxe5 {[%clk 0:02:04]}  Nd5 {[%clk 0:01:20]} 22. Qf3 {[%clk 0:01:56]}  axb4 {[%clk 0:01:20]} 23. axb4 {[%clk 0:01:57]}  Ra4 {[%clk 0:01:14]} 24. b5 {[%clk 0:01:55]}  cxb5 {[%clk 0:01:11]} 25. Rxb5 {[%clk 0:01:56]}  Rea8 {[%clk 0:01:09]} 26. h4 {[%clk 0:01:56]}  Ra1 {[%clk 0:01:06]} 27. Rbb1 {[%clk 0:01:56]}  Rxb1 {[%clk 0:00:57]} 28. Rxb1 {[%clk 0:01:57]}  Qxe5 {[%clk 0:00:26]} 29. Rxb7 {[%clk 0:01:55]}  f6 {[%clk 0:00:25]} 30. Bf4 {[%clk 0:01:53]}  Ra1+ {[%clk 0:00:23]} 31. Kh2 {[%clk 0:01:47]}  Nxf4 {[%clk 0:00:20]} 32. Qxf4 {[%clk 0:01:40]}  Qd5 {[%clk 0:00:18]} 33. Rb8+ {[%clk 0:01:38]}  Kh7 {[%clk 0:00:18]} 34. f3 {[%clk 0:01:23]}  Qa2+ {[%clk 0:00:16]} 35. Kh3 {[%clk 0:01:23]}  f5 {[%clk 0:00:13]} 0-1


[Site "https://www.chess.com"]